Workbook

Sheet Beilage 2.1
B1: Bahnhofareal Erlenbach | D1: VERSION 17.01.2020 | K1: Beilage 2.1
K2: vom Anbieter auszufüllen
B3: Berechnung der GP-Honorare | K3: Berechnung der aufwandbestimmenden Baukosten gemäss Beilage 2.2
B4: Offerte | K4: alle übrigen Werte und Beträge sind fix oder werden automatisch berechnet
B5: Vorsicht: Dokument beinhaltet 4 Arbeitsmappen
B7: Statistische Koeffizienten SIA (2018; 0.5 Quantil) | D7: Z1 | E7: 0.045 | F7: 0.049 | G7: 0.073 | H7: 0.073 | I7: 0.073 | J7: 0.073 | K7: 0.061
B8: (Es sind die aktuellesten Werte zu verwenden) | D8: Z2 | E8: 12.610 | F8: 8.866 | G8: 9.563 | H8: 9.563 | I8: 9.563 | J8: 9.563 | K8: 9.970
D10: Total General- planung | E10: Architektur, Gesamt- leitung | F10: Bau- Ing. | G10: Elektro- Ing. | H10: HLKK- Ing. | I10: Sanitär- Ing. | J10: MSRL- Ing. | K10: Landschaftsarch. | M10: Fachkoordination | N10: Nachhalti- ges Bauen | O10: Fassaden-planer | P10: Bauphysiker / Akustik | Q10: Brand-schutz- Planer | R10: Förder-anlagen-Planer
B11: 31 Vorprojekt
B12: Leistungsanteil in Prozenten (Summen gem. 2.3) | D12: q | E12: =SUM('Beilage 2.3'!E9:E10) -> 9.0% | F12: ='Beilage 2.3'!E30 -> 8.0% | G12: ='Beilage 2.3'!E45 -> 6.0% | H12: ='Beilage 2.3'!E57 -> 10.0% | I12: ='Beilage 2.3'!E69 -> 6.0% | J12: ='Beilage 2.3'!E81+'Beilage 2.3'!E82 -> 9.0% | K12: ='Beilage 2.3'!E94 -> 12.0%
B13: Aufwandbestimmende Baukosten Grundausbau total (exkl. MwSt) 1) --> noch zu bestimmen | D13: B | E13: ='Beilage 2.2'!F38 -> 0 | F13: ='Beilage 2.2'!H38 -> 0 | G13: ='Beilage 2.2'!J38 -> 0 | H13: ='Beilage 2.2'!L38 -> 0 | I13: ='Beilage 2.2'!N38 -> 0 | J13: ='Beilage 2.2'!P38 -> 0 | K13: ='Beilage 2.2'!R38 -> 0
B14: Grundfaktor für Stundenaufwand p | D14: p | E14: =(E7+E8/(E13^(1/3))) -> 
B15: Teamfaktor i | D15: i | E15: 1.0 | F15: 1.0 | G15: 1.0 | H15: 1.0 | I15: 1.0 | J15: 1.0 | K15: 1.0
B16: Schwierigkeitsgrad n | D16: n | E16: 1.0 | F16: 1.0 | G16: 1.0 | H16: 1.0 | I16: 1.0 | J16: 1.0 | K16: 1.0
B17: Anpassungsfaktor r | D17: r | E17: 1.0 | F17: 1.0 | G17: 1.0 | H17: 1.0 | I17: 1.0 | J17: 1.0 | K17: 1.0
B18: Faktor für Sonderleistungen s | D18: s | E18: 1.0 | F18: 1.0 | G18: 1.0 | H18: 1.0 | I18: 1.0 | J18: 1.0 | K18: 1.0
B19: Total Stundenaufwand | D19: =SUM(E19:K19) ->  | E19: =E13*E14/100*E16*E12*E17*E15*E18 ->  | M19: pauschal | N19: pauschal | O19: pauschal | P19: pauschal | Q19: pauschal | R19: pauschal
B20: Stundenansatz exkl. MwSt | D20: =SUM(E20:K20)/7 -> 0 | M20: pauschal | N20: pauschal | O20: pauschal | P20: pauschal | Q20: pauschal | R20: pauschal
B21: Honorare Total exkl. MwSt | D21: =SUM(E21:R21) ->  | E21: =E19*E20 ->  | F21: =+F19*F20 ->  | M21: ='Beilage 2.4'!F7 -> 0 | N21: ='Beilage 2.4'!L7 -> 0 | O21: ='Beilage 2.4'!F20 -> 0 | P21: ='Beilage 2.4'!L20 -> 0 | Q21: ='Beilage 2.4'!F33 -> 0 | R21: ='Beilage 2.4'!L33 -> 0
B22: Entschädigung Gesamtleitung (%) | D22: 3% | E22: =D22 -> 3%
B23: Entschädigung Gesamtleitung (CHF) | D23: =SUM(E23:R23) ->  | E23: =E21*E22 -> 
B24: Rabatt (%) | D24: 0% | E24: =D24 -> 0% | F24: =D24 -> 0% | G24: =D24 -> 0% | H24: =D24 -> 0% | I24: =D24 -> 0% | J24: =D24 -> 0% | K24: =D24 -> 0% | M24: 0% | N24: 0% | O24: 0% | P24: 0% | Q24: 0% | R24: 0%
B25: Rabatt (CHF) | D25: =SUM(E25:N25) ->  | E25: =-SUM(E21,E23)*E24 ->  | F25: =-F21*F24 ->  | M25: =-M21*M24 -> 0 | N25: 0 | O25: 0 | P25: 0 | Q25: 0 | R25: 0
B26: Honorare netto exkl. MwSt | D26: =SUM(E26:R26) ->  | E26: =SUM(E21,E23,E25) ->  | F26: =+F21+F25 ->  | M26: =+M21+M25 -> 0 | N26: 0 | O26: 0 | P26: 0 | Q26: 0 | R26: 0
D29: Total General- planung | E29: Architektur, Gesamt- leitung | F29: Bau- Ing. | G29: Elektro- Ing. | H29: HLKK- Ing. | I29: Sanitär- Ing. | J29: MSRL- Ing. | K29: Landschaftsarch. | M29: Fachkoordination | N29: Nachhalti- ges Bauen | O29: Fassaden-planer | P29: Bauphysiker / Akustik | Q29: Brandschutz- Planer | R29: Förderanlagen-Planer
B30: 32, 33 Bauprojekt, Bewilligungsverfahren
B31: Leistungsanteil in Prozenten (Summen gem. 2.3) | D31: q | E31: =SUM('Beilage 2.3'!E11:E14) -> 23.0% | F31: =SUM('Beilage 2.3'!E31:E32) -> 24.0% | G31: =SUM('Beilage 2.3'!E46:E47) -> 18.0% | H31: =SUM('Beilage 2.3'!E58:E59) -> 20.0% | I31: =SUM('Beilage 2.3'!E70:E71) -> 20.0% | J31: =SUM('Beilage 2.3'!E83:E84) -> 20.0% | K31: =SUM('Beilage 2.3'!E95:E96) -> 20.5%
B32: Aufwandbestimmende Baukosten Grundausbau total (exkl. MwSt) 1) --> noch zu bestimmen | D32: B | E32: =+E13 -> 0 | F32: 0 | G32: 0 | H32: 0 | I32: 0 | J32: 0 | K32: 0
B33: Grundfaktor für Stundenaufwand p | D33: p
B34: Teamfaktor i | D34: i | E34: 1.0 | F34: 1.0 | G34: 1.0 | H34: 1.0 | I34: 1.0 | J34: 1.0 | K34: 1.0
B35: Schwierigkeitsgrad n | D35: n | E35: 1.0 | F35: 1.0 | G35: 1.0 | H35: 1.0 | I35: 1.0 | J35: 1.0 | K35: 1.0
B36: Anpassungsfaktor r | D36: r | E36: 1.0 | F36: 1.0 | G36: 1.0 | H36: 1.0 | I36: 1.0 | J36: 1.0 | K36: 1.0
B37: Faktor für Sonderleistungen s | D37: s | E37: 1.0 | F37: 1.0 | G37: 1.0 | H37: 1.0 | I37: 1.0 | J37: 1.0 | K37: 1.0
B38: Total Stundenaufwand | D38: =SUM(E38:K38) ->  | E38: =E32*E33/100*E35*E31*E36*E34*E37 ->  | M38: pauschal | N38: pauschal | O38: pauschal | P38: pauschal | Q38: pauschal | R38: pauschal
B39: Stundenansatz exkl. MwSt | D39: =SUM(E39:K39)/7 -> 0 | M39: pauschal | N39: pauschal | O39: pauschal | P39: pauschal | Q39: pauschal | R39: pauschal
B40: Honorare Total exkl. MwSt | D40: =SUM(E40:R40) ->  | E40: =E38*E39 ->  | F40: =F38*F39 ->  | M40: =SUM('Beilage 2.4'!F8:F9) -> 0 | N40: =SUM('Beilage 2.4'!L8:L9) -> 0 | O40: =SUM('Beilage 2.4'!F21:F22) -> 0 | P40: =SUM('Beilage 2.4'!L21:L22) -> 0 | Q40: =SUM('Beilage 2.4'!F34:F35) -> 0 | R40: =SUM('Beilage 2.4'!L34:L35) -> 0
B41: Entschädigung Gesamtleitung (%) | D41: 3% | E41: =D41 -> 3%
B42: Entschädigung Gesamtleitung (CHF) | D42: =SUM(E42:R42) ->  | E42: =E40*E41 -> 
B43: Rabatt (%) | D43: 0% | E43: =D43 -> 0% | F43: =D43 -> 0% | G43: =D43 -> 0% | H43: =D43 -> 0% | I43: =D43 -> 0% | J43: =D43 -> 0% | K43: =D43 -> 0% | M43: 0% | N43: 0% | O43: 0% | P43: 0% | Q43: 0% | R43: 0%
B44: Rabatt (CHF) | D44: =SUM(E44:N44) ->  | E44: =-SUM(E40,E42)*E43 ->  | F44: =-F40*F43 ->  | M44: =-M40*M43 -> 0 | N44: 0 | O44: 0 | P44: 0 | Q44: 0 | R44: 0
B45: Honorare netto exkl. MwSt | D45: =SUM(E45:R45) ->  | E45: =SUM(E40,E42,E44) ->  | F45: =+F40+F44 ->  | M45: =+M40+M44 -> 0 | N45: 0 | O45: 0 | P45: 0 | Q45: 0 | R45: 0
B46: 1) aufwandbestimmende Baukosten vom xx.xx.xxxx
D49: Total General- planung | E49: Architektur, Gesamt- leitung | F49: Bau- Ing. | G49: Elektro- Ing. | H49: HLKK- Ing. | I49: Sanitär- Ing. | J49: MSRL- Ing. | K49: Landschaftsarch. | M49: Fachkoordination | N49: Nachhalti- ges Bauen | O49: Fassaden-planer | P49: Bauphysiker / Akustik | Q49: Brandschutz- Planer | R49: Förderanlagen-Planer
B50: 41 Ausschreibung
B51: Leistungsanteil in Prozenten (Summen gem. 2.3) | D51: q | E51: =SUM('Beilage 2.3'!E15:E16) -> 14.0% | F51: ='Beilage 2.3'!E33 -> 6.0% | G51: ='Beilage 2.3'!E48 -> 17.0% | H51: ='Beilage 2.3'!E60 -> 19.0% | I51: ='Beilage 2.3'!E72 -> 19.0% | J51: ='Beilage 2.3'!E85 -> 22.0% | K51: ='Beilage 2.3'!E97 -> 14.0%
B52: Aufwandbestimmende Baukosten Grundausbau total (exkl. MwSt) 1) --> noch zu bestimmen | D52: B | E52: =+E32 -> 0 | F52: =+F32 -> 0 | G52: 0 | H52: 0 | I52: 0 | J52: 0 | K52: 0
B53: Grundfaktor für Stundenaufwand p | D53: p | E53: =+E14 ->  | F53: =+F14 ->  | G53: =+G14 -> 
B54: Teamfaktor i | D54: i | E54: 1.0 | F54: 1.0 | G54: 1.0 | H54: 1.0 | I54: 1.0 | J54: 1.0 | K54: 1.0
B55: Schwierigkeitsgrad n | D55: n | E55: 1.0 | F55: 1.0 | G55: 1.0 | H55: 1.0 | I55: 1.0 | J55: 1.0 | K55: 1.0
B56: Anpassungsfaktor r | D56: r | E56: 1.0 | F56: 1.0 | G56: 1.0 | H56: 1.0 | I56: 1.0 | J56: 1.0 | K56: 1.0
B57: Faktor für Sonderleistungen s | D57: s | E57: 1.0 | F57: 1.0 | G57: 1.0 | H57: 1.0 | I57: 1.0 | J57: 1.0 | K57: 1.0
B58: Total Stundenaufwand | D58: =SUM(E58:K58) ->  | E58: =E52*E53/100*E55*E51*E56*E54*E57 ->  | F58: =F52*F53/100*F55*F51*F56*F54*F57 ->  | M58: pauschal | N58: pauschal | O58: pauschal | P58: pauschal | Q58: pauschal | R58: pauschal
B59: Stundenansatz exkl. MwSt | D59: =SUM(E59:K59)/7 -> 0 | M59: pauschal | N59: pauschal | O59: pauschal | P59: pauschal | Q59: pauschal | R59: pauschal
B60: Honorare Total exkl. MwSt | D60: =SUM(E60:R60) ->  | E60: =+E58*E59 ->  | M60: =SUM('Beilage 2.4'!F10) -> 0 | N60: =SUM('Beilage 2.4'!L10) -> 0 | O60: =SUM('Beilage 2.4'!F23) -> 0 | P60: =SUM('Beilage 2.4'!L23) -> 0 | Q60: =SUM('Beilage 2.4'!F36) -> 0 | R60: =SUM('Beilage 2.4'!L36) -> 0
B61: Entschädigung Gesamtleitung (%) | D61: 3% | E61: =D61 -> 3%
B62: Entschädigung Gesamtleitung (CHF) | D62: =SUM(E62:R62) ->  | E62: =E60*E61 -> 
B63: Rabatt (%) | D63: 0% | E63: =D63 -> 0% | F63: =D63 -> 0% | G63: =D63 -> 0% | H63: =D63 -> 0% | I63: =D63 -> 0% | J63: =D63 -> 0% | K63: =D63 -> 0% | M63: 0% | N63: 0% | O63: 0% | P63: 0% | Q63: 0% | R63: 0%
B64: Rabatt (CHF) | D64: =SUM(E64:N64) ->  | E64: =-SUM(E60,E62)*E63 ->  | F64: =-F60*F63 ->  | M64: =-M60*M63 -> 0 | N64: 0 | O64: 0 | P64: 0 | Q64: 0 | R64: 0
B65: Honorare netto exkl. MwSt | D65: =SUM(E65:R65) ->  | E65: =SUM(E60,E62,E64) ->  | F65: =+F60+F64 ->  | M65: =+M60+M64 -> 0 | N65: 0 | O65: 0 | P65: 0 | Q65: 0 | R65: 0
D68: Total General- planung | E68: Architektur, Gesamt- leitung | F68: Bau- Ing. | G68: Elektro- Ing. | H68: HLKK- Ing. | I68: Sanitär- Ing. | J68: MSRL- Ing. | K68: Landschaftsarch. | M68: Fachkoordination | N68: Nachhalti- ges Bauen | O68: Fassaden-planer | P68: Bauphysiker / Akustik | Q68: Brandschutz- Planer | R68: Förderanlagen-Planer
B69: 51, 52, 53 Ausführung, Projektabschluss
B70: Leistungsanteil in Prozenten (Summen gem. 2.3) | D70: q | E70: =SUM('Beilage 2.3'!E17:E24) -> 22.0% | F70: =SUM('Beilage 2.3'!E34:E39) -> 56.5% | G70: =SUM('Beilage 2.3'!E49:E51) -> 50.0% | H70: =SUM('Beilage 2.3'!E61:E63) -> 42.0% | I70: =SUM('Beilage 2.3'!E73:E75) -> 46.0% | J70: =SUM('Beilage 2.3'!E86:E88) -> 39.0% | K70: =SUM('Beilage 2.3'!E98:E100) -> 46.0%
B71: Aufwandbestimmende Baukosten Grundausbau total (exkl. MwSt) 1) --> noch zu bestimmen | D71: B | E71: =E52 -> 0 | F71: =F52 -> 0 | G71: 0 | H71: 0 | I71: 0 | J71: 0 | K71: 0
B72: Grundfaktor für Stundenaufwand p | D72: p | E72: =+E14 -> 
B73: Teamfaktor i | D73: i | E73: 1.0 | F73: 1.0 | G73: 1.0 | H73: 1.0 | I73: 1.0 | J73: 1.0 | K73: 1.0
B74: Schwierigkeitsgrad n | D74: n | E74: 1.0 | F74: 1.0 | G74: 1.0 | H74: 1.0 | I74: 1.0 | J74: 1.0 | K74: 1.0
B75: Anpassungsfaktor r | D75: r | E75: 1.0 | F75: 1.0 | G75: 1.0 | H75: 1.0 | I75: 1.0 | J75: 1.0 | K75: 1.0
B76: Faktor für Sonderleistungen s | D76: s | E76: 1.0 | F76: 1.0 | G76: 1.0 | H76: 1.0 | I76: 1.0 | J76: 1.0 | K76: 1.0
B77: Total Stundenaufwand | D77: =SUM(E77:K77) ->  | E77: =E71*E72/100*E74*E70*E75*E73*E76 ->  | M77: pauschal | N77: pauschal | O77: pauschal | P77: pauschal | Q77: pauschal | R77: pauschal
B78: Stundenansatz exkl. MwSt | D78: =SUM(E78:K78)/7 -> 0 | M78: pauschal | N78: pauschal | O78: pauschal | P78: pauschal | Q78: pauschal | R78: pauschal
B79: Honorare Total exkl. MwSt | D79: =SUM(E79:R79) ->  | E79: =+E77*E78 ->  | M79: =SUM('Beilage 2.4'!F11:F13) -> 0 | N79: =SUM('Beilage 2.4'!L11:L13) -> 0 | O79: =SUM('Beilage 2.4'!F24:F26) -> 0 | P79: =SUM('Beilage 2.4'!L24:L26) -> 0 | Q79: =SUM('Beilage 2.4'!F37:F39) -> 0 | R79: =SUM('Beilage 2.4'!L37:L39) -> 0
B80: Abzug Entfall Übergeordnete Gesamtleitung | D80: =E80 -> 0
B81: Zwischensumme exkl. MwSt. | D81: =SUM(D79-D80) ->  | E81: =SUM(E79,E80) ->  | M81: =SUM(M79-M80) -> 0 | N81: =SUM(N79-N80) -> 0 | O81: 0 | P81: 0 | Q81: 0 | R81: 0
B82: Entschädigung Gesamtleitung (%) | D82: 0% | E82: =D82 -> 0%
B83: Entschädigung Gesamtleitung (CHF) | D83: =SUM(E83:R83) ->  | E83: =E81*E82 -> 
B84: Rabatt (%) | D84: 0% | E84: =D84 -> 0% | F84: =D84 -> 0% | G84: =D84 -> 0% | H84: =D84 -> 0% | I84: =E84 -> 0% | J84: 0% | K84: 0% | M84: =$D$84 -> 0% | N84: 0% | O84: 0% | P84: 0% | Q84: 0% | R84: 0%
B85: Rabatt (CHF) | D85: =(D81*D84) ->  | E85: =-SUM(E81,E83)*E84 ->  | F85: =-(F81*F84) ->  | M85: =(M81*M84) -> 0 | N85: 0 | O85: 0 | P85: 0 | Q85: 0 | R85: 0
B86: Honorare netto exkl. MwSt | D86: =SUM(E86:R86) ->  | E86: =SUM(E81,E83,E85) ->  | F86: =F81-F85 ->  | M86: =M81-M85 -> 0 | N86: 0 | O86: 0 | P86: 0 | Q86: 0 | R86: 0
D91: Total General- planung | E91: Architektur, Gesamt- leitung | F91: Bau- Ing. | G91: Elektro- Ing. | H91: HLKK- Ing. | I91: Sanitär- Ing. | J91: MSRL- Ing. | K91: Landschaftsarch. | M91: Nachhalti- ges Bauen | N91: Nachhalti- ges Bauen | O91: Fassaden-planer | P91: Bauphysiker / Akustik | Q91: Brandschutz- Planer | R91: Förderanlagen-Planer
B92: Zusammenfassung
B93: Total Honorare netto exkl. MwSt | D93: =SUM(E93:R93) ->  | E93: =E26+E45+E65+E86 ->  | F93: =F26+F45+F65+F86 ->  | M93: =M26+M45+M65+M86 -> 0 | N93: 0 | O93: 0 | P93: 0 | Q93: 0 | R93: 0
B94: evtl. Überarbeitung Wettbewerbsprojekt | D94: 0 | E94: Zeitraum xx.xx.xxx
B95: Total Honorare | D95: =+D93+D94 -> 
B96: =B46 -> 1) aufwandbestimmende Baukosten vom xx.xx.xxxx

Sheet Beilage 2.2
B1: ='Beilage 2.1'!B1 -> Bahnhofareal Erlenbach | T1: Beilage 2.2
B3: Berechnung der aufwandbestimmenden Baukosten
B5: Anrechnung aufwandbestimmender Baukosten (in Abweichung zu Ordnungen SIA 102, 103, 105, 108)
B7: Grundsatz Anrechnung der aufwandbestimmenden Baukosten (Architektur):
B9: 100% | C9: Verantwortung für Planung, Termine und Kosten beim Architekten ohne Unterstützung durch den Fachplaner (exkl. Bauingenieur)
B10: 67% | C10: Verantwortung für Planung, Termine und Kosten beim Architekten mit Unterstützung durch den Fachplaner
B11: 33% | C11: Verantwortung für Planung, Termine und Kosten beim Fachplaner mit Planungskoordination durch den Architekten
B12: 0% | C12: Verantwortung für Planung, Termine und Kosten beim Fachplaner, bzw. keine Aufgaben durch den Architekten
B14: BKP | C14: Arbeitsgattung | D14: Aufwandsbestimmende Baukosten | E14: Architektur | G14: Bauingenieur | I14: Elektro-Ingenieur | K14: HLKK- Ingenieur | M14: Sanitär- Ingenieur | O14: MSRL- Ingenieur | Q14: Landschafts-architektur | T14: Begründung / Voraussetzung für Prozentsatz bei Architekt
B15: 10 | C15: Bestandsaufnahmen, Baugrunduntersuchungen | E15: 33% | F15: =IF(AND(E15>0,ISNUMBER(E15)),$D15*E15,"") -> 0 | G15: 0% | H15: =IF(AND(G15>0,ISNUMBER(G15)),$D15*G15,"") ->  | I15: 0% | J15: =IF(AND(I15>0,ISNUMBER(I15)),$D15*I15,"") ->  | K15: 0% | L15: =IF(AND(K15>0,ISNUMBER(K15)),$D15*K15,"") ->  | M15: 0% | N15: =IF(AND(M15>0,ISNUMBER(M15)),$D15*M15,"") ->  | O15: 0% | P15: =IF(AND(O15>0,ISNUMBER(O15)),$D15*O15,"") ->  | Q15: 0% | R15: =IF(AND(Q15>0,ISNUMBER(Q15)),$D15*Q15,"") ->  | T15: Arbeiten erfolgen durch externen Spezialisten (Geologie, Altlasten etc.)
B16: 11 | C16: Abbrüche und Räumungen | E16: *) | F16: =IF(AND(E16>0,ISNUMBER(E16)),$D16*E16,"") ->  | G16: *) | H16: =IF(AND(G16>0,ISNUMBER(G16)),$D16*G16,"") ->  | J16: =IF(AND(I16>0,ISNUMBER(I16)),$D16*I16,"") ->  | L16: =IF(AND(K16>0,ISNUMBER(K16)),$D16*K16,"") ->  | N16: =IF(AND(M16>0,ISNUMBER(M16)),$D16*M16,"") ->  | P16: =IF(AND(O16>0,ISNUMBER(O16)),$D16*O16,"") ->  | Q16: 0% | R16: =IF(AND(Q16>0,ISNUMBER(Q16)),$D16*Q16,"") ->  | T16: Aufteilung zwischen Arch. und Bauing. je nach Situation, zusammen max 100%
B17: 12 | C17: Sicherungen, Provisorien | E17: *) | F17: =IF(AND(E17>0,ISNUMBER(E17)),$D17*E17,"") ->  | G17: *) | Q17: 0% | T17: Aufteilung zwischen Arch. und Bauing. je nach Situation, zusammen max 100%
B18: 13 | C18: Baustelleneinrichtungen | E18: *) | G18: *) | Q18: 0% | T18: Aufteilung zwischen Arch. und Bauing. je nach Situation, zusammen max 100%
B19: 14-16 | C19: Anpassungen an bestehende Bauten | E19: *) | G19: *) | I19: *) | K19: *) | M19: *) | O19: *) | Q19: 0% | T19: Aufteilung zwischen Arch. und Bauing. je nach Situation, zusammen max 100%
B20: 17 | C20: Spezialtiefbau | E20: 33% | F20: 0 | G20: 100% | H20: 0 | I20: 0% | K20: 0% | L20: =IF(AND(K20>0,ISNUMBER(K20)),$D20*K20,"") ->  | M20: 0% | O20: 0% | Q20: 0% | T20: Verantwortung für Pfählung + Baugrubenabschlüsse liegen beim Bauingenieur
B21: 20 | C21: Aushub | E21: 33% | F21: 0 | G21: 100% | H21: 0 | I21: 0% | K21: 0% | M21: 0% | O21: 0% | Q21: 0% | T21: Anpassung je nach Komplexität der Situation, Gleisnähe und/oder innerstädtischer Lage.
B22: 21 | C22: Rohbau 1 | E22: 100% | F22: 0 | G22: 0% | I22: 0% | K22: 0% | M22: 0% | O22: 0% | Q22: 0%
C23: davon Tragkonstruktion | G23: 100% | H23: 0
C24: davon Befestigungen Fassade | G24: 100% | H24: 0
B25: 22 | C25: Rohbau 2 | E25: 100% | F25: 0 | G25: 0% | I25: 0% | K25: 0% | M25: 0% | O25: 0% | Q25: 0%
C26: davon Abdichtungen UG | G26: 100% | H26: 0 | T26: Der Bauingenieur ist honorarberechtigt für die beplanten Bauteile (insb. unterirdische Bauten sowie Abdichtungen im Beton).
B27: 23 | C27: Elektroanlagen | E27: 67% | F27: 0 | G27: 0% | I27: 100% | J27: 0 | K27: 0% | M27: 0% | O27: 0% | Q27: 0%
B28: 241-248 | C28: HLKK-Anlagen | E28: 67% | F28: 0 | G28: 0% | I28: 0% | K28: 100% | L28: 0 | M28: 0% | O28: 0% | Q28: 0%
B29: 249 | C29: MSRL-System | E29: 33% | F29: 0 | G29: 0% | I29: 0% | K29: 0% | M29: 0% | O29: 100% | P29: 0 | Q29: 0%
B30: 25 | C30: Sanitäranlagen | E30: 67% | F30: 0 | G30: 0% | I30: 0% | K30: 0% | M30: 100% | N30: 0 | O30: 0% | Q30: 0%
B31: 26 | C31: Transportanlagen | E31: 67% | F31: 0 | G31: 0% | I31: 0% | K31: 0% | M31: 0% | O31: 0% | Q31: 0% | T31: Planung erfolgt in der Regel durch Unternehmer. Bei Beizug eines Förderanlagenplaners reduziert sich der Anteil des Architekten auf 33%
B32: 27-28 | C32: Ausbau 1 + 2 | E32: 100% | F32: 0 | G32: 0% | I32: 0% | K32: 0% | M32: 0% | O32: 0% | Q32: 0%
B33: 3 | C33: Betriebseinrichtungen | E33: *) | G33: *) | I33: *) | K33: *) | M33: *) | O33: *) | Q33: *) | R33: =IF(AND(Q33>0,ISNUMBER(Q33)),$D33*Q33,"") -> 
B34: 4 | C34: Umgebung | E34: 33% | F34: 0 | G34: *) | I34: *) | K34: *) | M34: *) | O34: *) | Q34: 100% | R34: =IF(AND(Q34>0,ISNUMBER(Q34)),$D34*Q34,"") -> 0
B35: 5 | C35: Baunebenkosten | E35: 0% | G35: 0% | I35: 0% | K35: 0% | M35: 0% | O35: 0% | Q35: 0%
B36: 9 | C36: Ausstattung | E36: 67% | F36: 0 | G36: 0% | I36: 0% | K36: 0% | M36: 0% | O36: 0% | Q36: 0% | T36: Wird durch die SBB ein Innenarchitekt beigezogen, ist der Architekt für die Ausstattung nur zu 33% honorarberechtigt.
B37: 19,29,49 | C37: Honorare (werden berechnet) | D37: ='Beilage 2.1'!D95 ->  | E37: 0% | G37: 0% | I37: 0% | K37: 0% | M37: 0% | O37: 0% | Q37: 0%
C38: TOTAL | D38: =D37+D36+D35+D34+D33+D32+D31+D30+D29+D28+D27+D25+D22+D21+D20+D19+D18+D17+D16+D15 ->  | F38: =SUM(F15:F37) -> 0 | H38: =SUM(H15:H37) -> 0 | J38: =SUM(J15:J37) -> 0 | L38: =SUM(L15:L37) -> 0 | N38: =SUM(N15:N37) -> 0 | P38: =SUM(P15:P37) -> 0 | R38: =SUM(R15:R37) -> 0
B41: *) | C41: Je nach Projekt, sofern Leistung erbracht wird. Gesamthaft in der Regel nicht mehr als 100%.

Sheet Beilage 2.3
B1: ='Beilage 2.1'!B1 -> Bahnhofareal Erlenbach | F1: Beilage 2.3
B3: Festlegung der Teilleistungsprozente
B4: TU-Modell
B6: Architekturleistungen (Basis SIA 102)
B8: Teilphasen | D8: SIA | E8: Vertrag
B9: 31 Vorprojekt | C9: Studium von Lösungsmöglichkeiten und Grobschätzung der Baukosten | D9: 3.0% | E9: 3.0% | F9: Bei Vorliegen eines Wettbewerbsresultats 1.5%, sonst 3%
C10: Vorprojekt und Kostenschätzung | D10: 6.0% | E10: 6.0%
B11: 32 Bauprojekt | C11: Bauprojekt | D11: 13.0% | E11: 13.0%
C12: Detailstudien | D12: 4.0% | E12: 4.0%
C13: Kostenvoranschlag | D13: 4.0% | E13: 4.0%
B14: 33 Bewilligungsverfahren | C14: Bewilligungsverfahren | D14: 2.5% | E14: 2.0% | F14: Mitwirkung TU
B15: 41 Ausschreibung, Offertvergleich, Vergabeantrag | C15: Ausschreibungspläne | D15: 10.0% | E15: 10.0%
C16: Ausschreibung und Vergabe | D16: 8.0% | E16: 4.0%
B17: 51 Ausführungsplanung | C17: Ausführungspläne | D17: 15.0% | E17: 15.0%
C18: Werkverträge | D18: 1.0% | E18: 0.0% | F18: Wird durch TU geleistet
B19: 52 Ausführung | C19: Gestalterische Leitung | D19: 6.0% | E19: 6.0%
C20: Bauleitung und Kostenkontrolle | D20: 23.0% | E20: 0.0% | F20: Wird durch TU geleistet
B21: 53 Inbetriebnahme, Abschluss | C21: Inbetriebnahme | D21: 1.0% | E21: 0.5% | F21: Mitwirkung TU
C22: Dokumentation über das Bauwerk | D22: 1.0% | E22: 0.5% | F22: Teil der Revisionspläne bei TU
C23: Leitung der Garantiearbeiten | D23: 1.5% | E23: 0.0% | F23: Wird durch TU geleistet
C24: Schlussabrechnung | D24: 1.0% | E24: 0.0% | F24: Wird durch TU geleistet
B25: Total Leistungen des GP-Vertrags | D25: =SUM(D9:D24) -> 100.0% | E25: =SUM(E9:E24) -> 68.0%
B27: Bauingenieurleistungen (SIA 103)
B29: Teilphassen | D29: SIA | E29: Vertrag
B30: 31 Vorprojekt | D30: 8.0% | E30: 8.0%
B31: 32 Bauprojekt | D31: 22.0% | E31: 22.0%
B32: 33 Bewilligungsverfahren, Auflageprojekt | D32: 2.0% | E32: 2.0%
B33: 41 Ausschreibung, Offertvergleich, Vergabeantrag | D33: 10.0% | E33: 6.0% | F33: Nur Ausschreibungsunterlagen (Detailausschreibung), keine Ausschreibung, kein Offertvergleich
B34: 5 Realisierung | C34: 51 Ausführungsprojekt | D34: 18.0% | E34: 18.0%
C35: Zuschlag für Anteil Tragkonstuktion | D35: 30.0% | E35: 30.0%
B36: 52 Ausführung | C36: allg. Bauleitung | D36: 0.0% | E36: 0.0%
C37: techn. Bauleitung | D37: 0.0% | E37: 0.0%
C38: Baukontrolle | D38: 7.0% | E38: 7.0%
B39: 53 Inbetriebnahme Abschluss | D39: 3.0% | E39: 1.5% | F39: Anteil bei TU
B40: Total Leistungen des GP-Vertrags | D40: =SUM(D30:D39) -> 100.0% | E40: =SUM(E30:E39) -> 94.5%
B42: Leistungen Elektro-Ingenieur (SIA 108)
B44: Teilphassen | D44: SIA | E44: Vertrag
B45: 31 Vorprojekt | D45: 6.0% | E45: 6.0%
B46: 32 Bauprojekt | D46: 18.0% | E46: 18.0%
B47: 33 Bewilligungsverfahren, Auflageprojekt
B48: 41 Ausschreibung, Offertvergleich, Vergabeantrag | D48: 21.0% | E48: 17.0% | F48: Nur Ausschreibungsunterlagen (Detailausschreibung), keine Ausschreibung, kein Offertvergleich
B49: 51 Ausführungsprojekt | D49: 45.0% | E49: 45.0%
B50: 52 Ausführung
B51: 53 Inbetriebnahme Abschluss | D51: 10.0% | E51: 5.0% | F51: Anteil bei TU
B52: Total Leistungen des GP-Vertrags | D52: =SUM(D45:D51) -> 100.0% | E52: =SUM(E45:E51) -> 91.0%
B54: Leistungen HLKK-Ingenieur (SIA 108)
B56: Teilphassen | D56: SIA | E56: Vertrag
B57: 31 Vorprojekt | D57: 10.0% | E57: 10.0%
B58: 32 Bauprojekt | D58: 20.0% | E58: 20.0%
B59: 33 Bewilligungsverfahren, Auflageprojekt
B60: 41 Ausschreibung, Offertvergleich, Vergabeantrag | D60: 23.0% | E60: 19.0% | F60: Nur Ausschreibungsunterlagen (Detailausschreibung), keine Ausschreibung, kein Offertvergleich
B61: 51 Ausführungsprojekt | D61: 37.0% | E61: 37.0%
B62: 52 Ausführung
B63: 53 Inbetriebnahme Abschluss | D63: 10.0% | E63: 5.0% | F63: Anteil bei TU
B64: Total Leistungen des GP-Vertrags | D64: =SUM(D57:D63) -> 100.0% | E64: =SUM(E57:E63) -> 91.0%
B66: Leistungen Sanitär-Ingenieur (SIA 108)
B68: Teilphassen | D68: SIA | E68: Vertrag
B69: 31 Vorprojekt | D69: 6.0% | E69: 6.0%
B70: 32 Bauprojekt | D70: 20.0% | E70: 20.0%
B71: 33 Bewilligungsverfahren, Auflageprojekt
B72: 41 Ausschreibung, Offertvergleich, Vergabeantrag | D72: 23.0% | E72: 19.0% | F72: Nur Ausschreibungsunterlagen (Detailausschreibung), keine Ausschreibung, kein Offertvergleich
B73: 51 Ausführungsprojekt | D73: 41.0% | E73: 41.0%
B74: 52 Ausführung
B75: 53 Inbetriebnahme Abschluss | D75: 10.0% | E75: 5.0% | F75: Anteil bei TU
B76: Total Leistungen des GP-Vertrags | D76: =SUM(D69:D75) -> 100.0% | E76: =SUM(E69:E75) -> 91.0%
B78: Leistungen MSRL-Technik (SIA 108)
B80: Teilphassen | D80: SIA | E80: Vertrag
B81: 31 Vorprojekt | D81: 9.0% | E81: 9.0%
B83: 32 Bauprojekt | D83: 20.0% | E83: 20.0%
B84: 33 Bewilligungsverfahren, Auflageprojekt
B85: 41 Ausschreibung, Offertvergleich, Vergabeantrag | D85: 26.0% | E85: 22.0% | F85: Nur Ausschreibungsunterlagen (Detailausschreibung), keine Ausschreibung, kein Offertvergleich
B86: 51 Ausführungsprojekt | D86: 20.0% | E86: 20.0%
B87: 52 Ausführung | D87: 13.0% | E87: 13.0%
B88: 53 Inbetriebnahme Abschluss | D88: 12.0% | E88: 6.0% | F88: Anteil bei GU
B89: Total Leistungen des GP-Vertrags | D89: =SUM(D81:D88) -> 100.0% | E89: =SUM(E81:E88) -> 90.0%
B91: Leistungen Landschaftsarchitektur (SIA 105)
B93: Teilphassen | D93: SIA | E93: Vertrag
B94: 31 Vorprojekt | D94: 12.0% | E94: 12.0%
B95: 32 Bauprojekt | D95: 18.0% | E95: 18.0%
B96: 33 Bewilligungsverfahren, Auflageprojekt | D96: 2.5% | E96: 2.5%
B97: 41 Ausschreibung, Offertvergleich, Vergabeantrag | D97: 18.0% | E97: 14.0% | F97: Nur Ausschreibungsunterlagen (Detailausschreibung), keine Ausschreibung, kein Offertvergleich
B98: 51 Ausführungsprojekt | D98: 16.0% | E98: 15.0% | F98: nur Ausführungspläne
B99: 52 Ausführung | D99: 29.0% | E99: 29.0%
B100: 53 Inbetriebnahme Abschluss | D100: 4.5% | E100: 2.0% | F100: Anteil bei TU
B101: Total Leistungen des GP-Vertrags | D101: =SUM(D94:D100) -> 100.0% | E101: =SUM(E94:E100) -> 92.5%

Sheet Beilage 2.4
B1: ='Beilage 2.1'!B1 -> Bahnhofareal Erlenbach | L1: Beilage 2.4
B3: Offerte Leistungen Fachkoordination Gebäudetechnik | H3: Offerte Leistungen Experte für nachhaltiges Bauen
B4: exkl. MwSt. | H4: exkl. MwSt.
B6: Teilphasen | C6: Beschrieb der Leistungen | D6: Stunden-aufwand h | E6: Stundenansatz CHF/h | F6: Total | H6: Teilphasen | I6: Beschrieb der Leistungen | J6: Stunden-aufwand h | K6: Stundenansatz CHF/h | L6: Total
B7: 31 Vorprojekt | F7: =D7*E7 -> 0.00 | H7: 31 Vorprojekt | L7: =J7*K7 -> 0.00
B8: 32 Bauprojekt | F8: 0.00 | H8: 32 Bauprojekt | L8: 0.00
B9: 33 Bewilligungsverfahren | F9: 0.00 | H9: 33 Bewilligungsverfahren | L9: 0.00
B10: 41 Ausschreibung, Offertvergleich, Vergabeantrag | F10: 0.00 | H10: 41 Ausschreibung, Offertvergleich, Vergabeantrag | L10: 0.00
B11: 51 Ausführungsplanung | F11: 0.00 | H11: 51 Ausführungsplanung | L11: 0.00
B12: 52 Ausführung | F12: 0.00 | H12: 52 Ausführung | L12: 0.00
B13: 53 Inbetriebnahme, Abschluss | F13: 0.00 | H13: 53 Inbetriebnahme, Abschluss | L13: 0.00
B14: Total | D14: =SUM(D7:D13) -> 0.0 | E14: =(SUM(E7:E13))/7 -> 0.00 | F14: =SUM(F7:F13) -> 0.00 | H14: Total | J14: =SUM(J7:J13) -> 0.0 | K14: =(SUM(K7:K13))/7 -> 0.00 | L14: =SUM(L7:L13) -> 0.00
B16: Offerte Leistungen Fassadenplaner | H16: Offerte Leistungen Bauphysiker / Akustik
B17: exkl. MwSt. | H17: exkl. MwSt.
B19: Teilphasen | C19: Beschrieb der Leistungen | D19: Stunden-aufwand h | E19: Stundenansatz CHF/h | F19: Total | H19: Teilphasen | I19: Beschrieb der Leistungen | J19: Stunden-aufwand h | K19: Stundenansatz CHF/h | L19: Total
B20: 31 Vorprojekt | F20: =D20*E20 -> 0.00 | H20: 31 Vorprojekt | L20: =J20*K20 -> 0.00
B21: 32 Bauprojekt | F21: 0.00 | H21: 32 Bauprojekt | L21: 0.00
B22: 33 Bewilligungsverfahren | F22: 0.00 | H22: 33 Bewilligungsverfahren | L22: 0.00
B23: 41 Ausschreibung, Offertvergleich, Vergabeantrag | F23: 0.00 | H23: 41 Ausschreibung, Offertvergleich, Vergabeantrag | L23: 0.00
B24: 51 Ausführungsplanung | F24: 0.00 | H24: 51 Ausführungsplanung | L24: 0.00
B25: 52 Ausführung | F25: 0.00 | H25: 52 Ausführung | L25: 0.00
B26: 53 Inbetriebnahme, Abschluss | F26: 0.00 | H26: 53 Inbetriebnahme, Abschluss | L26: 0.00
B27: Total | D27: =SUM(D20:D26) -> 0.0 | E27: =(SUM(E20:E26))/7 -> 0.00 | F27: =SUM(F20:F26) -> 0.00 | H27: Total | J27: =SUM(J20:J26) -> 0.0 | K27: =(SUM(K20:K26))/7 -> 0.00 | L27: =SUM(L20:L26) -> 0.00
B29: Offerte Leistungen Brandschutzplaner | H29: Offerte Leistungen Spezialist
B30: exkl. MwSt. | H30: exkl. MwSt.
B32: Teilphasen | C32: Beschrieb der Leistungen | D32: Stunden-aufwand h | E32: Stundenansatz CHF/h | F32: Total | H32: Teilphasen | I32: Beschrieb der Leistungen | J32: Stunden-aufwand h | K32: Stundenansatz CHF/h | L32: Total
B33: 31 Vorprojekt | F33: =D33*E33 -> 0.00 | H33: 31 Vorprojekt | L33: =J33*K33 -> 0.00
B34: 32 Bauprojekt | F34: 0.00 | H34: 32 Bauprojekt | L34: 0.00
B35: 33 Bewilligungsverfahren | F35: 0.00 | H35: 33 Bewilligungsverfahren | L35: 0.00
B36: 41 Ausschreibung, Offertvergleich, Vergabeantrag | F36: 0.00 | H36: 41 Ausschreibung, Offertvergleich, Vergabeantrag | L36: 0.00
B37: 51 Ausführungsplanung | F37: 0.00 | H37: 51 Ausführungsplanung | L37: 0.00
B38: 52 Ausführung | F38: 0.00 | H38: 52 Ausführung | L38: 0.00
B39: 53 Inbetriebnahme, Abschluss | F39: 0.00 | H39: 53 Inbetriebnahme, Abschluss | L39: 0.00
B40: Total | D40: =SUM(D33:D39) -> 0.0 | E40: =(SUM(E33:E39))/7 -> 0.00 | F40: =SUM(F33:F39) -> 0.00 | H40: Total | J40: =SUM(J33:J39) -> 0.0 | K40: =(SUM(K33:K39))/7 -> 0.00 | L40: =SUM(L33:L39) -> 0.00
